fUSD/lending_fUSD_20250124
["ID","MTS","AMOUNT","RATE_DAILY","PERIOD"]
[350208941,1737691843154,-500.0,0.00019499,2]
[350208942,1737691843164,-500.0,0.00019499,2]
[350208943,1737691843173,-513.86141558,0.00019499,2]
[350208944,1737691843183,-504.75174219,0.00019499,2]
[350208945,1737691843192,-500.0,0.00019499,2]
[350208947,1737691843201,-569.09555085,0.00019499,2]
[350208948,1737691843210,-500.0,0.00019499,2]
[350208949,1737691843220,-500.0,0.00019499,2]
[350208950,1737691843230,-504.57083276,0.00019499,2]
[350208951,1737691843239,-5000.0,0.00019499,2]
[350208952,1737691843249,-500.0,0.00019499,2]
[350208953,1737691843258,-500.0,0.00019499,2]
[350208954,1737691843267,-500.0,0.00019499,2]
[350208955,1737691843276,-500.0,0.00019499,2]
[350208956,1737691843286,-500.0,0.00019499,2]
[350208957,1737691843295,-500.0,0.00019499,2]
[350208958,1737691843305,-500.0,0.00019499,2]
[350208959,1737691843315,-500.0,0.00019499,2]
[350208960,1737691843325,-500.0,0.00019499,2]
[350208961,1737691843335,-500.0,0.00019499,2]
[350208962,1737691843345,-500.0,0.00019499,2]
[350208963,1737691843355,-500.0,0.00019499,2]
[350208964,1737691843364,-500.0,0.00019499,2]
[350208965,1737691843374,-500.0,0.00019499,2]
[350208966,1737691843383,-500.0,0.00019499,2]
[350208967,1737691843393,-500.0,0.00019499,2]
[350208968,1737691843403,-500.0,0.00019499,2]
[350208969,1737691843412,-565.0,0.00019499,2]
[350208970,1737691843421,-500.0,0.00019499,2]
[350208971,1737691843431,-500.0,0.00019499,2]
[350208972,1737691843440,-500.0,0.00019499,2]
[350208973,1737691843450,-500.0,0.00019499,2]
[350208974,1737691843463,-500.0,0.00019499,2]
[350208975,1737691843472,-500.0,0.00019499,3]
[350208976,1737691843482,-500.0,0.00019499,2]
[350208977,1737691843491,-500.0,0.00019499,2]
[350208978,1737691843503,-500.0,0.00019499,2]
[350208979,1737691843513,-500.0,0.00019499,2]
[350208980,1737691843522,-500.0,0.00019499,2]
[350208981,1737691843531,-500.0,0.00019499,2]
[350208982,1737691843542,-500.0,0.00019499,2]
[350208983,1737691843551,-500.0,0.00019499,2]
[350208984,1737691843593,-500.0,0.00019499,2]
[350208985,1737691843602,-500.0,0.00019499,2]
[350208986,1737691843611,-500.0,0.00019499,2]
[350208987,1737691843620,-569.86284456,0.00019499,2]
[350208988,1737691843631,-500.0,0.00019499,2]
[350208989,1737691843639,-500.0,0.00019499,2]
[350208990,1737691843649,-635.86054171,0.00019499,2]
[350208991,1737691843659,-523.93876697,0.00019499,2]
[350208992,1737691843669,-506.19518157,0.00019499,2]
[350208993,1737691843678,-500.0,0.00019499,2]
[350208994,1737691843688,-500.0,0.00019499,2]
[350208995,1737691843698,-284.27906293,0.00019499,2]
[350208996,1737691843707,-500.0,0.00019499,2]
[350208997,1737691843717,-500.0,0.00019499,2]
[350208998,1737691843726,-500.0,0.00019499,2]
[350208999,1737691843736,-500.0,0.00019499,2]
[350209000,1737691843746,-500.0,0.00019499,2]
[350209001,1737691843756,-500.0,0.00019499,2]
[350209002,1737691843766,-500.0,0.00019499,2]
[350209004,1737691843776,-500.0,0.00019499,2]
[350209006,1737691843785,-500.0,0.00019499,2]
[350209007,1737691843795,-500.0,0.00019499,2]
[350209008,1737691843805,-500.0,0.00019499,2]
[350209009,1737691843818,-508.03791374,0.00019499,2]
[350209010,1737691843828,-515.08,0.00019499,2]
[350209011,1737691843838,-521.90121535,0.00019499,2]
[350209012,1737691843847,-1180.91,0.00019499,2]
[350209013,1737691843857,-503.62324656,0.00019499,2]
[350209014,1737691843867,-1987.13,0.00019499,2]
[350209015,1737691843877,-500.0,0.00019499,2]
[350209016,1737691843887,-500.0,0.00019499,2]
[350209017,1737691843899,-500.0,0.00019499,2]
[350209018,1737691843908,-500.0,0.00019499,2]
[350209019,1737691843918,-500.0,0.00019499,2]
[350209020,1737691843927,-521.87885779,0.00019499,2]
[350209021,1737691843936,-500.0,0.00019499,2]
[350209022,1737691843946,-506.85,0.00019499,2]
[350209023,1737691843955,-500.0,0.00019499,2]
[350209024,1737691843965,-500.0,0.00019499,2]
[350209025,1737691843975,-500.0,0.00019499,2]
[350209026,1737691843984,-500.0,0.00019499,2]
[350209027,1737691843993,-500.0,0.00019499,2]
[350209028,1737691844002,-1000.0,0.00019499,2]
[350209029,1737691844011,-500.0,0.00019499,2]
[350209030,1737691844021,-500.0,0.00019499,2]
[350209031,1737691844031,-500.0,0.00019499,2]
[350209032,1737691844041,-500.0,0.00019499,2]
[350209033,1737691844050,-500.0,0.00019499,2]
[350209034,1737691844060,-500.0,0.00019499,2]
[350209035,1737691844070,-500.0,0.00019499,2]
[350209036,1737691844079,-500.0,0.00019499,2]
[350209037,1737691844089,-500.0,0.00019499,2]
[350209038,1737691844098,-500.0,0.00019499,2]
[350209039,1737691844107,-501.0,0.000195,2]
[350209040,1737691844116,-30637.35792431,0.000195,15]
[350209041,1737691844130,-519.20355544,0.000195,15]
[350209042,1737691844399,-1803.2262,0.00017983,2]
[350209043,1737691844409,-500.0,0.00019495,2]
[350209044,1737691844419,-500.0,0.00019498,2]
[350209045,1737691844428,-500.0,0.00019498,2]
[350209046,1737691844438,-363.92328047,0.000195,15]
[350209047,1737691844450,-5905.0720505,0.000195,15]
[350209048,1737691846226,-193.698788,0.00019495,2]
[350209050,1737691846236,-633.0291275,0.00019495,2]
[350209051,1737691846284,-465.62760011,0.00019495,2]
[350209052,1737691846296,-15.06327239,0.00019495,2]
[350209053,1737691846305,-486.37811736,0.000195,15]
[350209054,1737691846395,-1643.642045,0.000195,15]
[350209055,1737691846615,-2290.69965148,0.000195,15]
[350209080,1737692662968,155.31,0.00010137,2]
[350209082,1737692779725,1058.0,0.00011607,2]
[350209093,1737693031460,-1058.0,0.00012218,2]
[350209095,1737693031469,-1058.0,0.00012861,2]
[350209096,1737693031479,-1058.0,0.00013538,2]
[350209097,1737693031488,-1058.0,0.0001425,2]
[350209098,1737693031498,-1058.0,0.00014963,2]
[350209099,1737693031507,-550.0,0.00015,2]
[350209100,1737693031517,-1058.0,0.00015711,2]
[350209101,1737693031526,-653.61,0.00016355,2]
[350209102,1737693031535,-382.82106463,0.00016496,2]
[350209103,1737693031546,-675.17893537,0.00016496,2]
[350209104,1737693031555,-600.0,0.00017,2]
[350209105,1737693031565,-438.0,0.00017,2]
[350209106,1737693031575,-243.77,0.00017213,2]
[350209107,1737693031584,-87.22154816,0.00017219,2]
[350209108,1737693031596,-207.18845184,0.00017219,2]
[350209109,1737693031605,-174.45,0.00017248,2]
[350209110,1737693031614,-624.27292834,0.00017321,2]
[350209111,1737693031642,-368.2086459,0.00017321,2]
[350209112,1737693031651,-1641.85876356,0.00017831,2]
[350209113,1737693031663,-741.67259054,0.00017831,2]
[350209114,1737693031674,-1561.880225,0.00017831,2]
[350209115,1737693031737,-6515.385521,0.00017831,2]
[350209116,1737693031748,-677.908,0.00017831,2]
[350209117,1737693031793,-12761.2948999,0.00017831,2]
[350209118,1737693031803,-567.03,0.00017926,2]
[350209119,1737693031812,-873.95086604,0.00017968,2]
[350209120,1737693031821,-438.0,0.00018,2]
[350209121,1737693031830,-598.58135854,0.00018,3]
[350209122,1737693031844,-44972.57162701,0.00018,2]
[350209123,1737693031853,-1496.211,0.00018067,2]
[350209124,1737693031862,-181.925,0.00018067,2]
[350209125,1737693031871,-294.41,0.0001808,2]
[350209126,1737693031880,-250.0,0.00018124,2]
[350209127,1737693031890,-250.0,0.00018153,2]
[350209128,1737693031900,-4000.0,0.00018154,2]
[350209129,1737693031911,-392.33,0.00018162,2]
[350209130,1737693031920,-173.05,0.00018174,2]
[350209131,1737693031930,-15790.33886597,0.00018189,2]
[350209132,1737693031939,-250.0,0.00018194,2]
[350209133,1737693031948,-1407.46492068,0.000182,2]
[350209134,1737693031959,-682.53507932,0.000182,2]
[350209135,1737693031970,-298.15,0.00018227,2]
[350209136,1737693031978,-1557.98,0.00018241,2]
[350209137,1737693031988,-181.22,0.0001831,30]
[350209138,1737693031998,-1000.0,0.00018366,2]
[350209139,1737693032009,-298.15,0.00018378,2]
[350209140,1737693032018,-317.0,0.00018472,2]
[350209141,1737693032028,-5501.40496248,0.00018533,2]
[350209142,1737693032038,-475.550835,0.00018533,2]
[350209143,1737693032054,-766.39410763,0.00018533,2]
[350209144,1737693032066,-1832.1416959,0.00018533,2]
[350209145,1737693032077,-1424.49839899,0.00018533,2]
[350209146,1737693032087,-434.96517719,0.00018533,2]
[350209147,1737693032100,-706.29087696,0.00018533,2]
[350209148,1737693032111,-300.0,0.00018533,2]
[350209157,1737693037501,-7349.79394585,0.00018533,2]
[350209158,1737693037511,-499.99,0.00018533,2]
[350209159,1737693037520,-9999.99,0.00018533,2]
[350209160,1737693037530,-928.59,0.00018533,2]
[350209161,1737693037539,-999.99,0.00018533,2]
[350209162,1737693037549,-1314.4,0.00018533,2]
[350209163,1737693037558,-299.99,0.00018533,4]
[350209164,1737693037567,-6641.12,0.00018533,2]
[350209165,1737693037576,-150.99,0.00018533,2]
[350209166,1737693037586,-4226.83,0.00018533,2]
[350209167,1737693037595,-150.99,0.00018533,2]
[350209168,1737693037604,-9999.99,0.00018533,2]
[350209169,1737693037614,-9999.99,0.00018533,2]
[350209170,1737693037623,-2396.66585259,0.00018564,2]
[350209171,1737693037633,-3066.32639197,0.00018581,2]
[350209172,1737693037642,-2396.66585259,0.00018609,2]
[350209173,1737693037651,-653.61,0.00018619,2]
[350209174,1737693037660,-200.0,0.00018625,2]
[350209175,1737693037670,-3066.32639197,0.00018626,2]
[350209176,1737693037680,-200.0,0.00018629,2]
[350209177,1737693037689,-3066.32639197,0.00018634,2]
[350209178,1737693037698,-3066.32639197,0.00018636,2]
[350209179,1737693037708,-2414.8469,0.00018652,2]
[350209180,1737693037717,-325.26011427,0.00018652,2]
[350209181,1737693037726,-2396.66585259,0.00018653,2]
[350209182,1737693037736,-3066.32639197,0.00018659,2]
[350209183,1737693037747,-2396.66585259,0.0001866,2]
[350209184,1737693037757,-150.41,0.00018662,2]
[350209185,1737693037767,-2396.66585259,0.00018674,2]
[350209186,1737693037776,-298.15,0.00018678,2]
[350209187,1737693037786,-298.15,0.00018678,2]
[350209189,1737693037795,-7144.0,0.00018731,2]
[350209191,1737693037805,-1865.0,0.00018752,2]
[350209193,1737693037815,-943.895,0.00018752,2]
[350209195,1737693037824,-2949.0,0.00018752,2]
[350209197,1737693037834,-772.035,0.00018752,2]
[350209199,1737693037848,-782.0,0.00018752,2]
[350209201,1737693037857,-538.0,0.00018752,2]
[350209203,1737693037869,-1104.338,0.00018752,2]
[350209205,1737693037878,-1496.776,0.00018752,2]
[350209206,1737693037888,-3904.0,0.00018752,2]
[350209209,1737693037898,-638.0,0.00018752,2]
[350209211,1737693037907,-150.0,0.00018752,2]
[350209213,1737693037918,-325.26011427,0.00018788,2]
[350209214,1737693037927,-5000.0,0.000188,2]
[350209217,1737693037936,-242.48,0.0001889,2]
[350209218,1737693037946,-242.48,0.0001889,2]
[350209220,1737693037955,-500.0,0.00018899,2]
[350209222,1737693037964,-500.0,0.00018899,2]
[350209224,1737693037973,-500.0,0.00018899,2]
[350209226,1737693037982,-500.0,0.00018899,2]
[350209228,1737693037991,-500.0,0.00018899,2]
[350209230,1737693038000,-500.0,0.00018899,2]
[350209232,1737693038009,-500.0,0.00018899,2]
[350209234,1737693038018,-950.41,0.00018899,2]
[350209236,1737693038028,-843.58,0.00018899,2]
[350209238,1737693038038,-500.0,0.00018899,2]
[350209240,1737693038047,-1774.97,0.00018899,2]
[350209241,1737693038055,-500.0,0.00018899,2]
[350209243,1737693038064,-500.0,0.00018899,2]
[350209245,1737693038073,-500.0,0.00018899,2]
[350209247,1737693038083,-500.0,0.00018899,2]
[350209249,1737693038093,-782.25,0.00018899,2]
[350209251,1737693038102,-500.0,0.00018899,2]
[350209253,1737693038111,-500.0,0.00018899,2]
[350209255,1737693038119,-500.0,0.00018899,2]
[350209257,1737693038128,-500.0,0.00018899,2]
[350209259,1737693038137,-83210.03011491,0.000189,2]
[350209274,1737693038272,-500.0,0.00018899,2]
[350209276,1737693038281,-2155.02292063,0.000189,2]
[350209391,1737693039430,-952.68014687,0.000189,2]
[350209404,1737693039542,-427.71126726,0.000189,2]
[350209427,1737693039759,-331.07,0.000189,2]
[350209695,1737693042395,-231.73369479,0.00018899,2]
[350210009,1737693045442,-1176.0,0.00018752,2]
[350210011,1737693045454,-268.26630521,0.00018899,2]
[350210013,1737693045463,-500.0,0.00018899,2]
[350210015,1737693045473,-14538.09318384,0.000189,2]
[350210018,1737693045485,-150271.22430617,0.000189,2]
[350210020,1737693045494,-216.43332208,0.000189,2]
[350210022,1737693045505,-41281.11601388,0.000189,2]
[350210025,1737693045520,-1886.86235768,0.000189,2]
[350210027,1737693045532,-564320.81458216,0.000189,2]
[350210031,1737693045559,-6546.4,0.000189,2]
[350210033,1737693045570,-128414.93453504,0.000189,2]
[350210035,1737693045580,-325.26011427,0.00018925,2]
[350210037,1737693045588,-294.41,0.00018941,2]
[350210039,1737693045598,-186.0,0.00019,2]
[350210041,1737693045607,-20598.89135325,0.00019,2]
[350210043,1737693045616,-650.0,0.00019,2]
[350210045,1737693045626,-438.0,0.00019,2]
[350210047,1737693045635,-216.43332184,0.00019003,2]
[350210048,1737693045644,-325.26011427,0.00019061,2]
[350210049,1737693045653,-216.43332184,0.00019107,2]
[350210050,1737693045662,-2631.3991333,0.0001911,2]
[350210051,1737693045672,-773.52,0.00019123,2]
[350210052,1737693045681,-773.52,0.00019123,2]
[350210053,1737693045690,-773.52,0.00019123,2]
[350210054,1737693045699,-500.0,0.00019164,2]
[350210055,1737693045709,-700.0,0.00019164,2]
[350210057,1737693045718,-500.0,0.00019173,2]
[350210059,1737693045727,-500.0,0.00019173,2]
[350210061,1737693045737,-500.0,0.00019173,2]
[350210063,1737693045747,-500.0,0.00019173,2]
[350210065,1737693045756,-500.0,0.00019173,2]
[350210067,1737693045765,-500.0,0.00019173,2]
[350210068,1737693045774,-500.0,0.00019173,2]
[350210070,1737693045783,-950.41,0.00019173,2]
[350210072,1737693045793,-843.58,0.00019173,2]
[350210075,1737693045803,-500.0,0.00019173,2]
[350210077,1737693045811,-1774.97,0.00019173,2]
[350210079,1737693045820,-500.0,0.00019173,2]
[350210081,1737693045829,-500.0,0.00019173,2]
[350210083,1737693045841,-500.0,0.00019173,2]
[350210084,1737693045851,-341.28,0.00019173,2]
[350210087,1737693045860,-782.25,0.00019173,2]
[350210089,1737693045869,-500.0,0.00019173,2]
[350210091,1737693045878,-500.0,0.00019173,2]
[350210093,1737693045890,-500.0,0.00019173,2]
[350210095,1737693045899,-500.0,0.00019173,2]
[350210097,1737693045908,-325.26011427,0.00019198,2]
[350210098,1737693045920,-193.4385706,0.00019198,2]
[350210100,1737693045929,-1019.0,0.000192,2]
[350210102,1737693045939,-216.43332184,0.0001921,2]
[350210104,1737693045948,-3266.4195,0.00019239,2]
[350210106,1737693045957,-3000.0,0.0001931,2]
[350210108,1737693045965,-216.43332184,0.00019314,2]
[350210110,1737693045975,-325.26011427,0.00019334,2]
[350210112,1737693045984,-197.74346792,0.00019339,2]
[350210114,1737693045993,-500.0,0.00019344,2]
[350210116,1737693046002,-700.0,0.00019375,2]
[350210118,1737693046011,-700.0,0.00019375,2]
[350210120,1737693046020,-700.0,0.00019375,2]
[350210122,1737693046029,-700.0,0.00019375,2]
[350210124,1737693046038,-700.0,0.00019375,2]
[350210126,1737693046047,-700.0,0.00019375,2]
[350210128,1737693046056,-700.0,0.00019375,2]
[350210130,1737693046066,-700.0,0.00019375,2]
[350210132,1737693046075,-700.0,0.00019375,2]
[350210134,1737693046084,-700.0,0.00019375,2]
[350210136,1737693046093,-398.0966,0.00019394,2]
[350210138,1737693046103,-2067.4351,0.00019394,2]
[350210140,1737693046112,-164.29648912,0.000194,2]
[350210142,1737693046121,-1251.3296,0.000194,2]
[350210144,1737693046130,-216.43332184,0.00019417,2]
[350210146,1737693046139,-500.0,0.00019447,2]
[350210148,1737693046148,-500.0,0.00019447,2]
[350210150,1737693046157,-500.0,0.00019447,2]
[350210152,1737693046166,-500.0,0.00019447,2]
[350210154,1737693046176,-500.0,0.00019447,2]
[350210156,1737693046185,-500.0,0.00019447,2]
[350210158,1737693046194,-500.0,0.00019447,2]
[350210159,1737693046202,-950.41,0.00019447,2]
[350210161,1737693046211,-843.58,0.00019447,2]
[350210162,1737693046221,-500.0,0.00019447,2]
[350210164,1737693046230,-1774.97,0.00019447,2]
[350210166,1737693046239,-500.0,0.00019447,2]
[350210168,1737693046248,-500.0,0.00019447,2]
[350210169,1737693046257,-500.0,0.00019447,2]
[350210170,1737693046265,-782.25,0.00019447,2]
[350210171,1737693046274,-500.0,0.00019447,2]
[350210172,1737693046283,-500.0,0.00019447,2]
[350210174,1737693046292,-500.0,0.00019447,2]
[350210176,1737693046302,-325.26011427,0.00019471,2]
[350210177,1737693046311,-164.6489394,0.00019473,2]
[350210178,1737693046320,-151.73448248,0.00019473,2]
[350210179,1737693046329,-504.46506333,0.00019473,2]
[350210180,1737693046339,-500.0,0.00019473,2]
[350210181,1737693046347,-500.0,0.00019473,2]
[350210182,1737693046356,-186.7978395,0.0001949,2]
[350210183,1737693046365,-320.6974999,0.0001949,2]
[350210184,1737693046375,-1102.628593,0.0001949,2]
[350210185,1737693046383,-1920.4118676,0.0001949,2]
[350210186,1737693046393,-1042.2225887,0.0001949,2]
[350210187,1737693046401,-199.1333008,0.0001949,2]
[350210188,1737693046410,-500.0,0.00019493,2]
[350210189,1737693046419,-500.0,0.00019493,2]
[350210190,1737693046428,-500.0,0.00019493,2]
[350210191,1737693046437,-405.112187,0.00019493,2]
[350210192,1737693046446,-500.0,0.00019493,2]
[350210193,1737693046455,-500.0,0.00019493,2]
[350210194,1737693046464,-500.0,0.00019493,2]
[350210195,1737693046474,-733.86,0.00019493,2]
[350210196,1737693046483,-333.986418,0.00019493,2]
[350210197,1737693046492,-500.0,0.00019493,2]
[350210198,1737693046501,-500.0,0.00019493,2]
[350210199,1737693046510,-158.572566,0.00019493,2]
[350210200,1737693046519,-1470.86,0.00019493,2]
[350210201,1737693046529,-1171.19,0.00019493,2]
[350210202,1737693046538,-160.189643,0.00019493,2]
[350210203,1737693046547,-1174.5,0.00019493,2]
[350210204,1737693046557,-500.0,0.00019493,2]
[350210205,1737693046566,-500.0,0.00019493,2]
[350210206,1737693046575,-500.0,0.00019493,2]
[350210207,1737693046585,-500.0,0.00019493,2]
[350210208,1737693046594,-637.6,0.00019493,2]
[350210209,1737693046603,-970.3,0.00019493,2]
[350210210,1737693046612,-500.0,0.00019493,2]
[350210211,1737693046621,-500.0,0.00019493,2]
[350210212,1737693046631,-500.0,0.00019493,2]
[350210213,1737693046640,-500.0,0.00019493,2]
[350210214,1737693046650,-887.48,0.00019493,2]
[350210215,1737693046659,-695.8,0.00019493,2]
[350210216,1737693046667,-500.0,0.00019493,2]
[350210217,1737693046677,-611.73,0.00019493,2]
[350210218,1737693046686,-500.0,0.00019493,2]
[350210219,1737693046695,-500.0,0.00019493,2]
[350210220,1737693046703,-1364.21,0.00019493,2]
[350210221,1737693046712,-1639.15,0.00019493,2]
[350210222,1737693046722,-500.0,0.00019493,2]
[350210223,1737693046732,-997.9,0.00019493,2]
[350210224,1737693046741,-500.0,0.00019493,2]
[350210225,1737693046750,-500.0,0.00019493,2]
[350210226,1737693046760,-992.23,0.00019493,2]
[350210227,1737693046769,-541.83,0.00019493,2]
[350210228,1737693046778,-500.0,0.00019493,2]
[350210229,1737693046788,-500.0,0.00019493,2]
[350210230,1737693046797,-1022.71,0.00019493,2]
[350210231,1737693046807,-500.0,0.00019493,2]
[350210232,1737693046816,-500.0,0.00019494,2]
[350210233,1737693046825,-500.0,0.00019494,2]
[350210234,1737693046834,-500.0,0.00019494,2]
[350210235,1737693046848,-500.0,0.00019494,2]
[350210236,1737693046857,-500.0,0.00019494,2]
[350210237,1737693046867,-500.0,0.00019494,2]
[350210238,1737693046876,-500.0,0.00019494,2]
[350210239,1737693046886,-500.0,0.00019494,2]
[350210240,1737693046895,-500.0,0.00019494,2]
[350210241,1737693046904,-500.0,0.00019494,2]
[350210242,1737693046913,-500.0,0.00019494,2]
[350210243,1737693046923,-500.0,0.00019494,2]
[350210244,1737693046932,-527.08,0.00019494,2]
[350210245,1737693046941,-500.0,0.00019494,2]
[350210246,1737693046951,-500.0,0.00019494,2]
[350210247,1737693046960,-500.0,0.00019494,2]
[350210248,1737693046970,-500.0,0.00019494,2]
[350210249,1737693046979,-500.0,0.00019494,2]
[350210250,1737693046988,-278.82789808,0.00019494,2]
[350210251,1737693046997,-500.0,0.00019494,2]
[350210252,1737693047007,-500.0,0.00019494,2]
[350210253,1737693047016,-500.0,0.00019494,2]
[350210254,1737693047026,-500.0,0.00019494,2]
[350210255,1737693047036,-500.0,0.00019494,2]
[350210256,1737693047045,-500.0,0.00019494,2]
[350210257,1737693047054,-500.0,0.00019494,2]
[350210258,1737693047063,-500.0,0.00019494,2]
[350210259,1737693047073,-500.0,0.00019494,2]
[350210260,1737693047081,-500.0,0.00019494,2]
[350210261,1737693047090,-500.0,0.00019494,2]
[350210262,1737693047099,-500.0,0.00019494,2]
[350210263,1737693047108,-500.0,0.00019494,2]
[350210264,1737693047118,-500.0,0.00019494,2]
[350210265,1737693047127,-96.25249142,0.00019494,2]
[350210266,1737693047297,-403.74750858,0.00019494,2]
[350210267,1737693047307,-500.0,0.00019494,2]
[350210268,1737693047317,-500.0,0.00019494,2]
[350210269,1737693047326,-500.0,0.00019494,2]
[350210270,1737693047335,-500.0,0.00019494,2]
[350210271,1737693047343,-500.0,0.00019494,2]
[350210272,1737693047353,-500.0,0.00019494,2]
[350210273,1737693047362,-500.0,0.00019494,2]
[350210274,1737693047371,-438.03285533,0.00019494,2]
[350210275,1737693047380,-500.0,0.00019494,2]
[350210276,1737693047389,-500.0,0.00019494,2]
[350210277,1737693047398,-500.0,0.00019494,2]
[350210278,1737693047408,-244.83237656,0.00019494,2]
[350210279,1737693047417,-500.0,0.00019494,2]
[350210280,1737693047426,-266.48829659,0.00019494,2]
[350210281,1737693047438,-233.51170341,0.00019494,2]
[350210282,1737693047447,-500.0,0.00019494,2]
[350210283,1737693047457,-500.0,0.00019494,2]
[350210284,1737693047467,-500.0,0.00019494,2]
[350210285,1737693047477,-500.0,0.00019494,2]
[350210286,1737693047486,-142.48829659,0.00019494,2]
[350210287,1737693047499,-357.51170341,0.00019494,2]
[350210288,1737693047508,-188.77462886,0.00019494,2]
[350210289,1737693047525,-311.22537114,0.00019494,2]
[350210290,1737693047535,-500.0,0.00019494,2]
[350210291,1737693047544,-500.0,0.00019494,2]
[350210292,1737693047553,-500.0,0.00019494,2]
[350210293,1737693047563,-500.0,0.00019494,2]
[350210294,1737693047572,-500.0,0.00019494,2]
[350210295,1737693047582,-500.0,0.00019494,2]
[350210296,1737693047591,-500.0,0.00019494,2]
[350210297,1737693047601,-500.0,0.00019494,2]
[350210298,1737693047611,-500.0,0.00019494,2]
[350210299,1737693047620,-500.0,0.00019494,2]
[350210300,1737693047630,-500.0,0.00019494,2]
[350210301,1737693047639,-593.48322256,0.00019494,2]
[350210302,1737693047648,-500.0,0.00019494,2]
[350210303,1737693047658,-500.0,0.00019494,2]
[350210304,1737693047667,-500.0,0.00019494,2]
[350210305,1737693047679,-500.0,0.00019494,2]
[350210306,1737693047688,-500.0,0.00019494,2]
[350210307,1737693047698,-500.0,0.00019494,2]
[350210308,1737693047708,-500.0,0.00019494,2]
[350210309,1737693047717,-500.0,0.00019494,2]
[350210310,1737693047727,-1000.0,0.00019494,30]
[350210311,1737693047736,-500.0,0.00019494,2]
[350210312,1737693047745,-500.0,0.00019494,2]
[350210313,1737693047756,-500.0,0.00019494,2]
[350210314,1737693047765,-500.0,0.00019494,2]
[350210315,1737693047775,-500.0,0.00019494,2]
[350210316,1737693047784,-500.0,0.00019494,2]
[350210317,1737693047793,-500.0,0.00019494,2]
[350210318,1737693047802,-500.0,0.00019494,2]
[350210319,1737693047812,-500.0,0.00019494,2]
[350210320,1737693047821,-500.0,0.00019494,2]
[350210321,1737693047830,-500.0,0.00019494,2]
[350210322,1737693047840,-500.0,0.00019494,2]
[350210323,1737693047853,-500.0,0.00019494,2]
[350210324,1737693047863,-500.0,0.00019494,2]
[350210325,1737693047872,-500.0,0.00019494,2]
[350210326,1737693047882,-72.13796133,0.00019494,2]
[350210327,1737693047895,-455.68637244,0.00019494,2]
[350210328,1737693047905,-500.0,0.00019494,2]
[350210329,1737693047915,-500.0,0.00019494,2]
[350210330,1737693047928,-500.0,0.00019494,2]
[350210331,1737693047937,-500.0,0.00019494,2]
[350210332,1737693047947,-500.0,0.00019494,2]
[350210333,1737693047956,-500.0,0.00019494,2]
[350210334,1737693047965,-500.0,0.00019494,2]
[350210335,1737693047974,-500.45,0.00019494,2]
[350210336,1737693047984,-500.0,0.00019494,2]
[350210337,1737693047993,-500.0,0.00019494,2]
[350210338,1737693048002,-500.0,0.00019494,2]
[350210339,1737693048011,-500.0,0.00019494,2]
[350210340,1737693048020,-500.0,0.00019494,2]
[350210341,1737693048029,-500.0,0.00019494,2]
[350210342,1737693048038,-133.54087814,0.00019494,2]
[350210343,1737693698564,246.05,0.00010137,2]
[350210345,1737693946017,151.012413,0.00022,120]